fUSD/lending_fUSD_20240408
["ID","MTS","AMOUNT","RATE_DAILY","PERIOD"]
[321916847,1712619033365,-1000.0,0.00024657,2]
[321916848,1712619033374,-1000.0,0.00024657,2]
[321916849,1712619033383,-257.0,0.00024657,2]
[321916850,1712619033392,-171.32241104,0.00024657,2]
[321916851,1712619033401,-500.0,0.00024657,2]
[321916852,1712619033410,-500.0,0.00024657,2]
[321916853,1712619033419,-500.0,0.00024657,2]
[321916854,1712619033428,-500.0,0.00024657,2]
[321916855,1712619033437,-228.30399141,0.00024657,2]
[321916856,1712619033449,-271.69600859,0.00024657,2]
[321916857,1712619033458,-500.0,0.00024657,2]
[321916858,1712619033468,-500.0,0.00024657,2]
[321916859,1712619033477,-500.0,0.00024657,2]
[321916860,1712619033486,-500.0,0.00024657,2]
[321916861,1712619033495,-500.0,0.00024657,2]
[321916862,1712619033505,-500.0,0.00024657,2]
[321916863,1712619033514,-535.04791627,0.00024657,2]
[321916864,1712619033523,-477.21437899,0.00024657,2]
[321916865,1712619033554,-22.78562101,0.00024657,2]
[321916866,1712619033563,-320.51429573,0.00024657,2]
[321916867,1712619033572,-500.0,0.00024657,2]
[321916868,1712619033581,-500.0,0.00024657,2]
[321916869,1712619033590,-500.0,0.00024657,2]
[321916870,1712619033600,-500.0,0.00024657,2]
[321916871,1712619033610,-500.0,0.00024657,2]
[321916872,1712619033619,-500.0,0.00024657,2]
[321916873,1712619033628,-500.0,0.00024657,2]
[321916874,1712619033637,-500.0,0.00024657,2]
[321916875,1712619033647,-642.89507756,0.00024657,2]
[321916876,1712619033656,-500.0,0.00024657,2]
[321916877,1712619033666,-250.72307642,0.00024657,2]
[321916878,1712619033675,-500.0,0.00024657,2]
[321916879,1712619033685,-500.0,0.00024657,2]
[321916880,1712619033694,-500.0,0.00024657,2]
[321916881,1712619033703,-500.0,0.00024657,2]
[321916882,1712619033712,-500.0,0.00024657,2]
[321916883,1712619033721,-519.1198368,0.00024657,2]
[321916884,1712619033731,-500.0,0.00024657,2]
[321916885,1712619033740,-500.0,0.00024657,2]
[321916886,1712619033751,-500.0,0.00024657,2]
[321916887,1712619033760,-500.0,0.00024657,2]
[321916888,1712619033770,-525.81312653,0.00024657,2]
[321916889,1712619033779,-500.0,0.00024657,2]
[321916890,1712619033788,-530.64,0.00024657,2]
[321916891,1712619033797,-658.93,0.00024657,2]
[321916892,1712619033806,-500.0,0.00024657,2]
[321916893,1712619033815,-500.0,0.00024657,2]
[321916894,1712619033825,-513.9806436,0.00024657,2]
[321916895,1712619033834,-600.0,0.00024657,2]
[321916896,1712619033843,-367.28236636,0.00024657,2]
[321916897,1712619033852,-500.0,0.00024657,2]
[321916898,1712619033861,-673.25,0.00024657,2]
[321916899,1712619033870,-500.0,0.00024657,2]
[321916900,1712619033880,-500.0,0.00024657,2]
[321916901,1712619033889,-225.22274094,0.00024657,2]
[321916902,1712619033899,-500.0,0.00024657,2]
[321916903,1712619033908,-500.0,0.00024657,2]
[321916904,1712619033917,-500.0,0.00024657,2]
[321916905,1712619033926,-500.0,0.00024657,2]
[321916906,1712619033936,-178.69380186,0.00024657,2]
[321916907,1712619033945,-500.0,0.00024657,2]
[321916908,1712619033955,-500.0,0.00024657,2]
[321916909,1712619033965,-500.0,0.00024657,2]
[321916910,1712619033973,-500.0,0.00024657,2]
[321916911,1712619033982,-500.0,0.00024657,2]
[321916912,1712619033992,-157.87546043,0.00024657,2]
[321916913,1712619034002,-500.0,0.00024657,2]
[321916914,1712619034011,-492.28510235,0.00024657,2]
[321916915,1712619034020,-500.0,0.00024657,2]
[321916916,1712619034030,-571.23,0.00024657,2]
[321916917,1712619034039,-821.9,0.00024657,2]
[321916918,1712619034048,-528.29,0.00024657,2]
[321916919,1712619034057,-631.48,0.00024657,2]
[321916920,1712619034066,-500.0,0.00024657,2]
[321916921,1712619034076,-724.23,0.00024657,2]
[321916922,1712619034087,-500.0,0.00024657,2]
[321916923,1712619034097,-635.41,0.00024657,2]
[321916924,1712619034106,-500.0,0.00024657,2]
[321916925,1712619034115,-500.0,0.00024657,2]
[321916926,1712619034125,-500.0,0.00024657,2]
[321916927,1712619034134,-500.0,0.00024657,2]
[321916928,1712619034143,-868.27,0.00024657,2]
[321916929,1712619034152,-500.0,0.00024657,2]
[321916930,1712619034161,-500.0,0.00024657,2]
[321916931,1712619034170,-555.85841629,0.00024657,2]
[321916932,1712619034180,-791.62,0.00024657,2]
[321916933,1712619034189,-500.0,0.00024657,2]
[321916934,1712619034198,-500.0,0.00024657,2]
[321916935,1712619034208,-500.0,0.00024657,2]
[321916936,1712619034216,-500.0,0.00024657,2]
[321916937,1712619034225,-500.0,0.00024657,2]
[321916938,1712619034235,-532.9046925,0.00024657,2]
[321916939,1712619034245,-500.0,0.00024657,2]
[321916940,1712619034255,-500.0,0.00024657,2]
[321916941,1712619034264,-500.0,0.00024657,2]
[321916942,1712619034273,-543.50315883,0.00024657,2]
[321916943,1712619034283,-500.0,0.00024657,2]
[321916944,1712619034293,-500.0,0.00024657,2]
[321916945,1712619034302,-1407.3,0.00024657,2]
[321916946,1712619034311,-500.0,0.00024657,2]
[321916947,1712619034320,-838.76,0.00024657,2]
[321916948,1712619034330,-500.0,0.00024657,2]
[321916949,1712619034339,-500.0,0.00024657,2]
[321916950,1712619034349,-500.0,0.00024657,2]
[321916951,1712619034358,-500.0,0.00024657,2]
[321916952,1712619034366,-935.55,0.00024657,2]
[321916953,1712619034375,-500.0,0.00024657,2]
[321916954,1712619034384,-998.44,0.00024657,2]
[321916955,1712619034393,-500.0,0.00024657,2]
[321916956,1712619034402,-500.0,0.00024657,2]
[321916957,1712619034411,-500.0,0.00024657,2]
[321916958,1712619034420,-500.0,0.00024657,2]
[321916959,1712619034429,-503.86891666,0.00024657,2]
[321916960,1712619034438,-198.93754235,0.00024657,2]
[321916961,1712619034659,-301.06245765,0.00024657,2]
[321916962,1712619034678,-500.0,0.00024657,2]
[321916963,1712619034688,-500.0,0.00024657,2]
[321916964,1712619034698,-210.67128177,0.00024657,2]
[321916982,1712619038301,-783.43698561,0.0002202,2]
[321916983,1712619038311,-237.754,0.00022929,2]
[321916984,1712619038321,-1230.0,0.00022929,2]
[321916985,1712619038331,-2107.87348037,0.000246,2]
[321916986,1712619038340,-347.46382534,0.00024657,2]
[321916987,1712619038350,-500.0,0.00024657,2]
[321916988,1712619038359,-540.67765684,0.00024657,2]
[321916989,1712619038368,-500.0,0.00024657,2]
[321916990,1712619038378,-500.0,0.00024657,2]
[321916991,1712619038387,-535.37122202,0.00024657,2]
[321916992,1712619038514,-274.96877798,0.00024657,2]
[321916993,1712619038523,-500.0,0.00024657,2]
[321916994,1712619038533,-500.0,0.00024657,2]
[321916995,1712619038542,-1061.18,0.00024657,2]
[321916996,1712619038552,-500.0,0.00024657,2]
[321916998,1712619038562,-973.75,0.00024657,2]
[321917000,1712619038571,-824.39,0.00024657,2]
[321917002,1712619038580,-1348.19,0.00024657,2]
[321917004,1712619038589,-491.46281957,0.00024657,2]
[321917006,1712619038599,-500.0,0.00024657,2]
[321917008,1712619038608,-500.0,0.00024657,2]
[321917010,1712619038618,-500.0,0.00024657,2]
[321917012,1712619038627,-500.0,0.00024657,2]
[321917014,1712619038637,-500.0,0.00024657,2]
[321917016,1712619038646,-1602.47,0.00024657,2]
[321917018,1712619038656,-500.0,0.00024657,2]
[321917020,1712619038665,-500.0,0.00024657,2]
[321917022,1712619038674,-500.0,0.00024657,2]
[321917024,1712619038685,-500.0,0.00024657,2]
[321917026,1712619038694,-500.0,0.00024657,2]
[321917028,1712619038703,-500.0,0.00024657,2]
[321917030,1712619038713,-500.0,0.00024657,2]
[321917032,1712619038722,-500.0,0.00024657,2]
[321917034,1712619038731,-500.0,0.00024657,2]
[321917036,1712619038741,-1246.32,0.00024657,2]
[321917038,1712619038751,-500.0,0.00024657,2]
[321917040,1712619038761,-500.0,0.00024657,2]
[321917042,1712619038770,-500.0,0.00024657,2]
[321917044,1712619038779,-520.02703978,0.00024657,2]
[321917046,1712619038789,-500.0,0.00024657,2]
[321917048,1712619038798,-500.0,0.00024657,2]
[321917050,1712619038809,-500.0,0.00024657,2]
[321917052,1712619038818,-500.0,0.00024657,2]
[321917054,1712619038828,-500.0,0.00024657,2]
[321917056,1712619038837,-500.0,0.00024657,2]
[321917058,1712619038846,-500.0,0.00024657,2]
[321917060,1712619038856,-500.0,0.00024657,2]
[321917062,1712619038866,-500.0,0.00024657,2]
[321917064,1712619038875,-513.05859335,0.00024657,2]
[321917066,1712619038885,-1151.49,0.00024657,2]
[321917068,1712619038896,-500.0,0.00024657,2]
[321917070,1712619038905,-500.0,0.00024657,2]
[321917072,1712619038914,-900.93,0.00024657,2]
[321917074,1712619038925,-500.0,0.00024657,2]
[321917077,1712619038934,-500.0,0.00024657,2]
[321917079,1712619038946,-500.0,0.00024657,2]
[321917081,1712619038955,-751.67,0.00024657,2]
[321917083,1712619038964,-500.0,0.00024657,2]
[321917085,1712619038974,-500.0,0.00024657,2]
[321917087,1712619038983,-500.0,0.00024657,2]
[321917089,1712619038992,-500.0,0.00024657,2]
[321917091,1712619039003,-500.0,0.00024657,2]
[321917093,1712619039012,-500.0,0.00024657,2]
[321917095,1712619039021,-500.0,0.00024657,2]
[321917097,1712619039030,-536.9447179,0.00024657,2]
[321917099,1712619039039,-500.0,0.00024657,2]
[321917101,1712619039049,-238.96530965,0.00024657,2]
[321917103,1712619039058,-500.0,0.00024657,2]
[321917105,1712619039067,-500.0,0.00024657,2]
[321917107,1712619039079,-500.0,0.00024657,2]
[321917109,1712619039089,-500.0,0.00024657,2]
[321917111,1712619039098,-500.0,0.00024657,2]
[321917113,1712619039106,-568.93,0.00024657,2]
[321917115,1712619039115,-500.0,0.00024657,2]
[321917117,1712619039126,-500.0,0.00024657,2]
[321917119,1712619039136,-115.00451447,0.00024657,2]
[321917123,1712619039164,-356.34624932,0.00024657,2]
[321917124,1712619039175,-28.64923621,0.00024657,2]
[321917125,1712619039184,-283.12426379,0.00024657,2]
[321917128,1712619039253,-2107.87348037,0.000246,2]
[321917130,1712619039263,-175.66252893,0.00024657,2]
[321917132,1712619039272,-500.0,0.00024657,2]
[321917134,1712619039281,-571.18,0.00024657,2]
[321917137,1712619039290,-500.0,0.00024657,2]
[321917139,1712619039300,-500.0,0.00024657,2]
[321917141,1712619039309,-500.0,0.00024657,2]
[321917143,1712619039318,-500.0,0.00024657,2]
[321917145,1712619039328,-500.0,0.00024657,2]
[321917147,1712619039338,-500.0,0.00024657,2]
[321917149,1712619039347,-500.0,0.00024657,2]
[321917151,1712619039356,-500.0,0.00024657,2]
[321917153,1712619039365,-500.0,0.00024657,2]
[321917154,1712619039375,-500.0,0.00024657,2]
[321917155,1712619039385,-500.0,0.00024657,2]
[321917156,1712619039396,-500.0,0.00024657,2]
[321917157,1712619039406,-500.0,0.00024657,2]
[321917158,1712619039415,-500.0,0.00024657,2]
[321917159,1712619039425,-588.66,0.00024657,2]
[321917160,1712619039434,-500.0,0.00024657,2]
[321917161,1712619039444,-500.0,0.00024657,2]
[321917162,1712619039453,-500.0,0.00024657,2]
[321917163,1712619039462,-500.0,0.00024657,2]
[321917164,1712619039472,-500.0,0.00024657,2]
[321917165,1712619039481,-500.0,0.00024657,2]
[321917166,1712619039491,-500.0,0.00024657,2]
[321917167,1712619039503,-500.0,0.00024657,2]
[321917168,1712619039512,-585.28,0.00024657,2]
[321917169,1712619039523,-545.91,0.00024657,2]
[321917170,1712619039532,-749.97,0.00024657,2]
[321917171,1712619039541,-500.0,0.00024657,2]
[321917172,1712619039551,-778.83,0.00024657,2]
[321917173,1712619039560,-500.0,0.00024657,2]
[321917174,1712619039570,-500.0,0.00024657,2]
[321917175,1712619039580,-500.0,0.00024657,2]
[321917176,1712619039589,-877.47,0.00024657,2]
[321917177,1712619039598,-515.94,0.00024657,2]
[321917178,1712619039607,-500.0,0.00024657,2]
[321917180,1712619039618,-81.7239907,0.00024657,2]
[321917184,1712619040191,-1228.0,0.00022929,2]
[321917185,1712619040201,-320.42325906,0.00024557,2]
[321917186,1712619040211,-418.2760093,0.00024657,2]
[321917187,1712619040220,-500.0,0.00024657,2]
[321917189,1712619040229,-500.0,0.00024657,2]
[321917190,1712619040239,-534.28361954,0.00024657,2]
[321917191,1712619040249,-500.0,0.00024657,2]
[321917192,1712619040258,-273.0280721,0.00024657,2]
[321917193,1712619040270,-226.9719279,0.00024657,2]
[321917194,1712619040279,-850.96,0.00024657,2]
[321917195,1712619040288,-500.0,0.00024657,2]
[321917196,1712619040298,-500.0,0.00024657,2]
[321917197,1712619040308,-500.0,0.00024657,2]
[321917198,1712619040317,-864.81,0.00024657,2]
[321917199,1712619040326,-500.0,0.00024657,2]
[321917200,1712619040335,-500.0,0.00024657,2]
[321917201,1712619040345,-500.0,0.00024657,2]
[321917202,1712619040354,-1075.35,0.00024657,2]
[321917203,1712619040363,-500.0,0.00024657,2]
[321917204,1712619040372,-500.0,0.00024657,2]
[321917205,1712619040381,-500.0,0.00024657,2]
[321917206,1712619040391,-500.0,0.00024657,2]
[321917207,1712619040400,-571.49,0.00024657,2]
[321917208,1712619040409,-500.0,0.00024657,2]
[321917209,1712619040418,-500.0,0.00024657,2]
[321917210,1712619040427,-841.3,0.00024657,2]
[321917211,1712619040436,-624.33,0.00024657,2]
[321917212,1712619040445,-538.319935,0.00024657,2]
[321917213,1712619040455,-500.0,0.00024657,2]
[321917214,1712619040464,-500.0,0.00024657,2]
[321917215,1712619040474,-1348.09,0.00024657,2]
[321917216,1712619040483,-500.0,0.00024657,2]
[321917217,1712619040492,-500.0,0.00024657,2]
[321917218,1712619040504,-500.0,0.00024657,2]
[321917219,1712619040514,-500.0,0.00024657,2]
[321917220,1712619040525,-500.0,0.00024657,2]
[321917221,1712619040534,-500.0,0.00024657,2]
[321917222,1712619040544,-500.0,0.00024657,2]
[321917223,1712619040554,-500.0,0.00024657,2]
[321917224,1712619040563,-627.03,0.00024657,2]
[321917225,1712619040572,-500.0,0.00024657,2]
[321917226,1712619040582,-500.0,0.00024657,2]
[321917227,1712619040672,-604.73,0.00024657,2]
[321917228,1712619040682,-1015.94,0.00024657,2]
[321917229,1712619040691,-500.0,0.00024657,2]
[321917230,1712619040700,-500.0,0.00024657,2]
[321917231,1712619040709,-500.0,0.00024657,2]
[321917232,1712619040718,-500.0,0.00024657,2]
[321917233,1712619040727,-500.0,0.00024657,2]
[321917234,1712619040736,-960.34327393,0.00024657,2]
[321917235,1712619040745,-500.0,0.00024657,2]
[321917236,1712619040757,-205.17,0.00024657,2]
[321917237,1712619040766,-500.0,0.00024657,2]
[321917238,1712619040775,-500.0,0.00024657,2]
[321917239,1712619040785,-300.0,0.00024657,2]
[321917240,1712619040793,-500.0,0.00024657,2]
[321917241,1712619040802,-500.0,0.00024657,2]
[321917242,1712619040811,-500.0,0.00024657,2]
[321917243,1712619040820,-500.0,0.00024657,2]
[321917244,1712619040829,-1174.04,0.00024657,2]
[321917245,1712619040838,-500.0,0.00024657,2]
[321917246,1712619040847,-500.0,0.00024657,2]
[321917247,1712619040856,-500.0,0.00024657,2]
[321917248,1712619040865,-783.42,0.00024657,2]
[321917249,1712619040873,-1813.05,0.00024657,2]
[321917250,1712619040883,-834.08,0.00024657,2]
[321917251,1712619040892,-500.0,0.00024657,2]
[321917252,1712619040901,-2268.55,0.00024657,2]
[321917253,1712619040910,-500.0,0.00024657,2]
[321917254,1712619040919,-500.0,0.00024657,2]
[321917255,1712619040928,-562.74,0.00024657,2]
[321917256,1712619040938,-500.0,0.00024657,2]
[321917257,1712619040947,-525.38,0.00024657,2]
[321917258,1712619040956,-500.0,0.00024657,2]
[321917259,1712619040965,-500.0,0.00024657,2]
[321917260,1712619040974,-500.0,0.00024657,2]
[321917261,1712619040984,-500.0,0.00024657,2]
[321917262,1712619040993,-500.0,0.00024657,2]
[321917263,1712619041003,-500.0,0.00024657,2]
[321917264,1712619041013,-312.70495253,0.00024657,2]
[321917265,1712619041022,-500.0,0.00024657,2]
[321917266,1712619041031,-500.0,0.00024657,2]
[321917267,1712619041041,-500.0,0.00024657,2]
[321917268,1712619041050,-1051.13,0.00024657,2]
[321917269,1712619041060,-953.37,0.00024657,2]
[321917270,1712619041069,-800.05,0.00024657,2]
[321917271,1712619041079,-556.82,0.00024657,2]
[321917272,1712619041092,-500.0,0.00024657,2]
[321917273,1712619041101,-863.01,0.00024657,2]
[321917274,1712619041110,-500.0,0.00024657,2]
[321917275,1712619041119,-500.0,0.00024657,2]
[321917276,1712619041129,-500.0,0.00024657,2]
[321917277,1712619041138,-500.0,0.00024657,2]
[321917278,1712619041147,-545.73,0.00024657,2]
[321917279,1712619041157,-500.0,0.00024657,2]
[321917280,1712619041167,-1062.51,0.00024657,2]
[321917281,1712619041177,-500.0,0.00024657,2]
[321917282,1712619041188,-501.98512676,0.00024657,2]
[321917283,1712619041197,-594.56,0.00024657,2]
[321917284,1712619041206,-500.0,0.00024657,2]
[321917285,1712619041215,-500.0,0.00024657,2]
[321917286,1712619041225,-551.02636262,0.00024657,2]
[321917287,1712619041234,-1110.7,0.00024657,2]
[321917288,1712619041243,-542.07,0.00024657,2]
[321917289,1712619041253,-500.0,0.00024657,2]
[321917290,1712619041263,-2118.99,0.00024657,2]
[321917291,1712619041272,-500.0,0.00024657,2]
[321917292,1712619041281,-500.0,0.00024657,2]
[321917293,1712619041292,-500.0,0.00024657,2]
[321917294,1712619041301,-1054.06,0.00024657,2]
[321917295,1712619041310,-500.0,0.00024657,2]
[321917296,1712619041319,-361.68211837,0.00024657,2]
[321917297,1712619041328,-500.0,0.00024657,2]
[321917298,1712619041338,-595.08,0.00024657,2]
[321917299,1712619041347,-500.0,0.00024657,2]
[321917300,1712619041355,-558.77719921,0.00024657,2]
[321917301,1712619041364,-500.0,0.00024657,2]
[321917302,1712619041373,-884.84,0.00024657,2]
[321917303,1712619041382,-500.0,0.00024657,2]
[321917304,1712619041392,-606.91,0.00024657,2]
[321917305,1712619041401,-500.0,0.00024657,2]
[321917306,1712619041410,-580.07720929,0.00024657,2]
[321917307,1712619041419,-785.78,0.00024657,2]
[321917308,1712619041429,-814.93,0.00024657,2]
[321917309,1712619041437,-788.17,0.00024657,2]
[321917310,1712619041447,-500.0,0.00024657,2]
[321917311,1712619041456,-500.0,0.00024657,2]
[321917312,1712619041465,-501.55,0.00024657,2]
[321917313,1712619041474,-500.0,0.00024657,2]
[321917314,1712619041483,-536.52643023,0.00024657,2]
[321917315,1712619041492,-500.0,0.00024657,2]
[321917316,1712619041501,-500.0,0.00024657,2]
[321917317,1712619041511,-500.0,0.00024657,2]
[321917318,1712619041520,-783.86,0.00024657,2]
[321917319,1712619041529,-500.0,0.00024657,2]
[321917320,1712619041538,-722.46,0.00024657,2]
[321917321,1712619041546,-500.0,0.00024657,2]
[321917322,1712619041555,-500.0,0.00024657,2]
[321917323,1712619041564,-500.0,0.00024657,2]
[321917324,1712619041573,-500.0,0.00024657,2]
[321917325,1712619041582,-1196.85,0.00024657,2]
[321917326,1712619041592,-672.87,0.00024657,2]
[321917327,1712619041601,-522.38077921,0.00024657,2]
[321917328,1712619041610,-608.98,0.00024657,2]
[321917329,1712619041619,-500.0,0.00024657,2]
[321917330,1712619041628,-500.0,0.00024657,2]
[321917331,1712619041637,-500.0,0.00024657,2]
[321917332,1712619041646,-500.0,0.00024657,2]
[321917333,1712619041655,-1377.2,0.00024657,2]
[321917334,1712619041665,-500.0,0.00024657,2]
[321917335,1712619041674,-500.0,0.00024657,2]
[321917336,1712619041683,-505.61433632,0.00024657,2]
[321917337,1712619041692,-500.0,0.00024657,2]
[321917338,1712619041701,-500.0,0.00024657,2]
[321917339,1712619041710,-1648.38,0.00024657,2]
[321917340,1712619041719,-1780.48,0.00024657,2]
[321917341,1712619041728,-558.62004334,0.00024657,2]
[321917342,1712619041738,-500.0,0.00024657,2]
[321917343,1712619041746,-500.0,0.00024657,2]
[321917344,1712619041757,-853.86,0.00024657,2]
[321917345,1712619041766,-540.69,0.00024657,2]
[321917346,1712619041775,-500.0,0.00024657,2]
[321917347,1712619041784,-775.94,0.00024657,2]
[321917348,1712619041793,-177.63960112,0.00024657,2]
[321917349,1712619041802,-501.65,0.00024657,2]
[321917350,1712619041811,-500.0,0.00024657,2]
[321917351,1712619041820,-500.0,0.00024657,2]
[321917352,1712619041830,-2139.86,0.00024657,2]
[321917353,1712619041838,-500.0,0.00024657,2]
[321917354,1712619041848,-500.0,0.00024657,2]
[321917355,1712619041857,-500.0,0.00024657,2]
[321917356,1712619041866,-500.0,0.00024657,2]
[321917357,1712619041875,-737.56,0.00024657,2]
[321917358,1712619041886,-500.0,0.00024657,2]
[321917359,1712619041895,-527.56,0.00024657,2]
[321917360,1712619041907,-909.25,0.00024657,2]
[321917361,1712619041917,-660.98,0.00024657,2]
[321917362,1712619041927,-500.0,0.00024657,2]
[321917363,1712619041937,-2168.55,0.00024657,2]
[321917364,1712619041947,-500.0,0.00024657,2]
[321917365,1712619041957,-591.07,0.00024657,2]
[321917366,1712619041967,-1849.46,0.00024657,2]
[321917367,1712619041976,-1140.15,0.00024657,2]
[321917368,1712619041985,-500.0,0.00024657,2]
[321917369,1712619041995,-500.0,0.00024657,2]
[321917370,1712619042008,-1049.2,0.00024657,2]
[321917371,1712619042018,-500.0,0.00024657,2]
[321917372,1712619042028,-500.0,0.00024657,2]
[321917373,1712619042037,-1479.35,0.00024657,2]
[321917374,1712619042047,-2216.99,0.00024657,2]
[321917375,1712619042057,-500.0,0.00024657,2]
[321917376,1712619042066,-674.5,0.00024657,2]
[321917377,1712619042078,-500.0,0.00024657,2]
[321917378,1712619042089,-1079.22,0.00024657,2]
[321917379,1712619042098,-500.0,0.00024657,2]
[321917380,1712619042108,-500.0,0.00024657,2]
[321917381,1712619042117,-500.0,0.00024657,2]
[321917382,1712619042127,-283.08922786,0.00024657,2]
[321917383,1712619042136,-538.41,0.00024657,2]
[321917384,1712619042145,-516.0,0.00024657,2]
[321917385,1712619042154,-500.0,0.00024657,2]
[321917386,1712619042165,-681.28,0.00024657,2]
[321917387,1712619042174,-500.0,0.00024657,2]
[321917388,1712619042184,-2700.88,0.00024657,2]
[321917389,1712619042193,-500.0,0.00024657,2]
[321917390,1712619042204,-500.0,0.00024657,2]
[321917391,1712619042214,-500.0,0.00024657,2]
[321917392,1712619042226,-1035.34,0.00024657,2]
[321917393,1712619042235,-500.0,0.00024657,2]
[321917394,1712619042244,-500.0,0.00024657,2]
[321917395,1712619042255,-500.0,0.00024657,2]
[321917396,1712619042264,-500.0,0.00024657,2]
[321917397,1712619042273,-500.0,0.00024657,2]
[321917398,1712619042283,-331.60202535,0.00024657,2]
[321917399,1712619042293,-2155.95,0.00024657,2]
[321917400,1712619042303,-2079.14,0.00024657,2]
[321917401,1712619042313,-500.0,0.00024657,2]
[321917402,1712619042322,-500.0,0.00024657,2]
[321917403,1712619042331,-500.0,0.00024657,2]
[321917404,1712619042340,-410.37791351,0.00024657,2]
[321917405,1712619042349,-359.51621339,0.00024657,2]
[321917406,1712619042358,-500.0,0.00024657,2]
[321917407,1712619042367,-696.53,0.00024657,2]
[321917408,1712619042375,-500.0,0.00024657,2]
[321917409,1712619042384,-500.0,0.00024657,2]
[321917410,1712619042393,-500.0,0.00024657,2]
[321917411,1712619042402,-500.0,0.00024657,2]
[321917412,1712619042411,-513.28,0.00024657,2]
[321917413,1712619042420,-500.0,0.00024657,2]
[321917414,1712619042430,-500.0,0.00024657,2]
[321917415,1712619042439,-500.0,0.00024657,2]
[321917416,1712619042447,-1027.31,0.00024657,2]
[321917417,1712619042457,-500.0,0.00024657,2]
[321917418,1712619042466,-511.99,0.00024657,2]
[321917419,1712619042476,-533.27261344,0.00024657,2]
[321917420,1712619042485,-500.0,0.00024657,2]
[321917421,1712619042494,-1504.83,0.00024657,2]
[321917422,1712619042505,-500.0,0.00024657,2]
[321917423,1712619042514,-500.0,0.00024657,2]
[321917424,1712619042523,-500.0,0.00024657,2]
[321917425,1712619042532,-500.0,0.00024657,2]
[321917426,1712619042541,-500.0,0.00024657,2]
[321917427,1712619042550,-2903.35,0.00024657,2]
[321917428,1712619042560,-660.07,0.00024657,2]
[321917429,1712619042569,-500.0,0.00024657,2]
[321917430,1712619042578,-673.6,0.00024657,2]
[321917431,1712619042587,-618.59,0.00024657,2]
[321917432,1712619042596,-500.0,0.00024657,2]
[321917435,1712619042606,-500.0,0.00024657,2]
[321917437,1712619042614,-500.0,0.00024657,2]
[321917439,1712619042623,-794.17,0.00024657,2]
[321917441,1712619042633,-500.0,0.00024657,2]
[321917442,1712619042642,-500.0,0.00024657,2]
[321917443,1712619042651,-952.05,0.00024657,2]
[321917444,1712619042661,-500.0,0.00024657,2]
[321917445,1712619042670,-1647.67,0.00024657,2]
[321917446,1712619042679,-500.0,0.00024657,2]
[321917447,1712619042689,-500.0,0.00024657,2]
[321917448,1712619042698,-500.0,0.00024657,2]
[321917449,1712619042707,-500.0,0.00024657,2]
[321917450,1712619042717,-500.0,0.00024657,2]
[321917451,1712619042726,-500.0,0.00024657,2]
[321917452,1712619042734,-1427.48,0.00024657,2]
[321917453,1712619042744,-610.63,0.00024657,2]